bitfinex-derivatives/quotes_SOLF0:USTF0_20241212
["timestamp","ask_amount","ask_price","bid_price","bid_amount"]
[1733976361673,1.4431,231.02,230.89,24.03705402]
[1733976362677,1.4431,231.02,230.92,2.1638]
[1733976362678,2.1632,230.99,230.92,2.1638]
[1733976363567,2.1633,230.98,230.92,2.1638]
[1733976366474,5.5628,231.11,230.89,24.03705402]
[1733976366673,6.64674842,231.13,230.93,20.36115402]
[1733976366875,6.64674842,231.13,230.94,3.45518978]
[1733976367074,6.64674842,231.13,230.94,2.66]
[1733976367474,6.64674842,231.13,230.97,20.36115402]
[1733976367475,1.4436,231.13,230.97,20.36115402]
[1733976367875,5.5098,231.18,230.97,20.36115402]
[1733976368070,2.8498,231.18,230.97,20.36115402]
[1733976368279,2.8498,231.18,230.98,0.79502988]
[1733976368575,1.4521,231.18,231.01,20.36115402]
[1733976368877,2.66,231.2,231.08,2.1623]
[1733976369073,2.66,231.2,231.09,2.66]
[1733976369380,2.1616,231.16,231.09,2.66]
[1733976370076,2.1622,231.1,231.07,2.66]
[1733976370377,2.1622,231.1,231.06,2.66]
[1733976370783,20.36115402,231.2,231.06,2.66]
[1733976371072,20.36115402,231.2,231.02,2.7224]
[1733976371073,4.0339,231.19,231.02,5.3824]
[1733976371274,2.1619,231.13,231.06,2.1625]
[1733976371481,4.0339,231.19,231.02,5.3824]
[1733976371671,1.3739,231.19,231.02,5.3824]
[1733976371872,2.1617,231.15,231.09,2.1622]
[1733976372075,2.1617,231.15,231.09,4.8222]
[1733976372476,2.1615,231.17,231.09,4.8222]
[1733976372683,1.4436,231.21,231.09,4.8222]
[1733976372884,1.4436,231.21,231.09,2.66]
[1733976373777,21.80475402,231.21,231.09,2.66]
[1733976374186,2.1618,231.14,231.09,2.66]
[1733976374381,1.4436,231.21,231.09,2.66]
[1733976375581,2.1616,231.16,231.09,4.8222]
[1733976376286,2.1617,231.15,231.09,4.8222]
[1733976376492,26.73435724,231.23,231.09,2.66]
[1733976376493,4.0793,231.23,231.09,2.66]
[1733976376687,0.15788,231.22,231.09,2.66]
[1733976377081,2.1619,231.13,231.06,2.66]
[1733976377486,20.36115402,231.21,231.06,4.8225]
[1733976378393,2.162,231.12,231.06,4.8225]
[1733976378686,20.36115402,231.21,231.06,4.8225]
[1733976379092,2.162,231.12,231.06,4.8225]
[1733976379592,2.66,231.16,231.02,2.7224]
[1733976379795,2.66,231.15,231.0,5.1514893]
[1733976379992,4.065,231.15,231.0,5.1514893]
[1733976380186,4.065,231.15,231.0,7.8114893]
[1733976381391,2.1623,231.09,231.0,7.8114893]
[1733976381689,4.065,231.15,231.0,5.1514893]
[1733976381991,4.065,231.15,230.96,4.867]
[1733976381992,20.36115402,231.11,230.96,4.867]
[1733976382191,13.27712967,231.1,230.96,2.7036]
[1733976382389,2.1626,231.06,230.96,4.867]
[1733976382583,2.66,231.09,230.96,4.867]
[1733976382987,2.1626,231.06,230.97,2.1634]
[1733976383182,2.66,231.09,230.97,2.1634]
[1733976383788,2.1628,231.03,230.97,2.1634]
[1733976384197,2.1628,231.03,230.98,5.07573483]
[1733976384990,2.1629,231.02,230.98,5.07573483]
[1733976386093,2.1629,231.02,230.96,2.7036]
[1733976386094,2.66,231.09,230.96,2.7036]
[1733976386501,2.66,231.09,230.96,1.3521]
[1733976386997,2.1632,230.99,230.95,2.66]
[1733976387191,2.66,231.09,230.95,2.66]
[1733976388297,2.1633,230.98,230.94,5.22376511]
[1733976388591,20.36115402,231.08,230.9,1.3481]
[1733976388796,2.1637,230.93,230.87,4.089]
[1733976388992,2.66,231.01,230.88,5.13234893]
[1733976389184,2.66,231.01,230.88,6.48044893]
[1733976390795,2.66,231.01,230.9,2.164]
[1733976390996,2.66,231.01,230.88,6.48044893]
[1733976391194,20.36115402,231.08,230.92,2.1638]
[1733976391393,2.66,231.07,230.92,2.66]
[1733976392094,2.66,231.08,230.92,2.66]
[1733976393486,1.4015,231.1,230.93,20.36115402]
[1733976394698,1.4015,231.1,230.99,2.1631]
[1733976394900,1.4015,231.1,231.0,2.66]
[1733976395295,2.1624,231.07,231.0,2.66]
[1733976395494,1.4015,231.1,231.0,2.66]
[1733976396000,2.163,231.01,231.0,2.66]
[1733976396300,1.4015,231.1,230.99,2.1632]
[1733976396496,1.4015,231.1,230.99,4.8232]
[1733976396497,2.1626,231.06,230.99,4.8232]
[1733976396797,1.4015,231.1,230.99,4.8232]
[1733976396991,2.1627,231.04,230.99,4.8232]
[1733976397795,1.4015,231.1,230.99,2.66]
[1733976397991,1.4015,231.1,230.93,2.66]
[1733976398991,2.163,231.01,230.96,2.1634]
[1733976399190,2.163,231.01,230.95,2.66]
[1733976399394,12.7562204,231.08,230.95,2.66]
[1733976399590,2.66,231.07,230.95,2.66]
[1733976401301,2.163,231.01,230.95,2.66]
[1733976402194,2.66,231.07,230.95,2.66]
[1733976402400,2.163,231.01,230.95,4.8235]
[1733976402600,2.163,231.01,230.95,2.66]
[1733976402796,12.7562204,231.09,230.95,2.66]
[1733976403096,1.4015,231.1,230.98,12.7562204]
[1733976403299,240.65002442,231.21,230.95,2.66]
[1733976403300,180.48751831,231.18,231.01,12.7562204]
[1733976403499,12.7562204,231.19,231.05,2.1625]
[1733976403696,12.7562204,231.16,231.02,2.66]
[1733976403897,2.162,231.12,231.05,2.1626]
[1733976404098,5.10600498,231.18,231.04,12.7562204]
[1733976405104,2.1616,231.16,231.08,2.1623]
[1733976405400,12.7562204,231.2,231.09,2.66]
[1733976405401,18.06413097,231.2,231.09,2.66]
[1733976405595,12.7562204,231.17,231.09,2.66]
[1733976406092,12.7562204,231.17,231.1,0.84]
[1733976406493,2.1615,231.17,231.1,0.84]
[1733976407699,2.1615,231.17,231.1,3.0021]
[1733976408199,2.7643,231.23,231.1,0.84]
[1733976408394,20.38319165,231.21,231.1,0.84]
[1733976408802,2.1619,231.14,231.1,0.84]
[1733976408999,20.38319165,231.21,231.1,0.84]
[1733976409704,5.23017314,231.22,231.1,0.84]
[1733976410300,2.1618,231.14,231.1,0.84]
[1733976410602,2.66,231.18,231.1,0.84]
[1733976411307,2.162,231.12,231.1,0.84]
[1733976412303,2.1618,231.14,231.1,0.84]
[1733976412803,2.66,231.18,231.1,0.84]
[1733976413106,2.1619,231.13,231.1,0.84]
[1733976414101,2.66,231.18,231.1,0.84]
[1733976414306,2.162,231.12,231.1,0.84]
[1733976416611,2.1621,231.11,231.1,0.84]
[1733976419104,20.38319165,231.19,231.1,0.84]
[1733976419310,2.1618,231.14,231.1,0.84]
[1733976419911,23.04319165,231.19,231.1,0.84]
[1733976420110,2.1621,231.11,231.1,0.84]
[1733976423015,20.38319165,231.15,231.02,2.66]
[1733976424112,2.1624,231.07,231.02,2.66]
[1733976424310,20.38319165,231.15,231.02,2.66]
[1733976424514,20.38319165,231.07,230.87,65.17040362]
[1733976424815,2.1634,230.97,230.88,2.7867]
[1733976425007,2.1634,230.97,230.9,2.66]
[1733976425718,2.1634,230.97,230.91,2.1639]
[1733976425913,20.38319165,231.03,230.88,2.7867]
[1733976426214,20.38319165,231.03,230.88,1.4351]
[1733976426611,20.38319165,231.03,230.81,20.38319165]
[1733976426807,20.38319165,230.99,230.82,4.8261901]
[1733976427005,2.66,230.98,230.83,2.16609626]
[1733976427812,2.66,230.98,230.86,5.29872117]
[1733976428212,2.66,230.98,230.86,7.46453594]
[1733976429016,20.38319165,230.99,230.86,7.46453594]
[1733976429217,23.04319165,230.99,230.86,7.46453594]
[1733976429913,2.1636,230.95,230.87,2.1643]
[1733976430113,2.66,230.99,230.86,7.46453594]
[1733976430515,2.66,231.02,230.86,7.46453594]
[1733976431615,2.1637,230.94,230.86,9.62893594]
[1733976431814,2.1637,230.94,230.86,7.46312117]
[1733976432211,2.66,231.02,230.87,2.1643]
[1733976432410,2.1639,230.93,230.87,2.1643]
[1733976432613,2.66,231.02,230.86,5.29872117]
[1733976433319,12.76621597,231.03,230.86,18.06493714]
[1733976433620,12.76621597,231.0,230.86,18.06493714]
[1733976433915,12.76621597,231.0,230.87,2.1644]
[1733976434115,12.76621597,231.0,230.86,5.29872117]
[1733976434318,2.1638,230.94,230.86,5.29872117]
[1733976434617,12.76621597,230.97,230.83,2.1648]
[1733976434816,12.76621597,230.94,230.82,2.66]
[1733976435021,2.1643,230.89,230.82,2.66]
[1733976435620,2.1644,230.88,230.82,2.66]
[1733976435820,12.76621597,230.94,230.82,2.66]
[1733976436117,2.1641,230.91,230.82,2.66]
[1733976436321,12.76621597,230.94,230.82,2.66]
[1733976436720,12.76621597,230.94,230.82,7.82344817]
[1733976437117,2.1643,230.89,230.82,9.98834817]
[1733976437417,12.76621597,230.94,230.82,9.98834817]
[1733976438224,2.1644,230.87,230.82,7.82344817]
[1733976440225,2.1644,230.87,230.82,9.98834817]
[1733976442221,4.187,230.95,230.82,7.82344817]
[1733976442523,12.76621597,231.02,230.86,12.76621597]
[1733976442731,69.21629662,231.08,230.89,12.76621597]
[1733976442732,15.42621597,231.05,230.89,12.76621597]
[1733976443024,2.1634,230.98,230.9,2.66]
[1733976445725,2.1634,230.98,230.92,2.1639]
[1733976445927,2.1636,230.96,230.9,2.66]
[1733976446230,12.76621597,231.02,230.9,2.66]
[1733976446520,5.15372447,231.04,230.86,2.66]
[1733976446521,2.164,230.91,230.86,2.66]
[1733976447718,1.348,230.98,230.81,2.64]
[1733976448023,5.15372447,231.04,230.88,12.76621597]
[1733976448229,4.0211,231.05,230.91,12.76621597]
[1733976448420,1.3811,231.05,230.92,3.9715]
[1733976448624,1.3811,231.05,230.92,5.4094]
[1733976449722,2.1631,231.02,230.96,2.1636]
[1733976449937,1.3811,231.05,230.92,5.4094]
[1733976450223,14.14731597,231.05,230.92,5.4094]
[1733976450829,2.1634,230.98,230.93,2.1638]
[1733976451026,14.14731597,231.05,230.92,5.4094]
[1733976451623,2.1636,230.96,230.92,5.4094]
[1733976451821,2.1636,230.96,230.92,2.64]
[1733976452018,12.76621597,231.02,230.92,2.64]
[1733976452218,2.1633,230.99,230.92,2.64]
[1733976452424,12.76621597,231.02,230.92,2.64]
[1733976452928,2.64,231.03,230.92,2.64]
[1733976453224,14.14731597,231.05,230.92,2.64]
[1733976453428,1.3811,231.05,230.92,2.64]
[1733976454426,2.1631,231.01,230.94,2.1637]
[1733976454630,14.14731597,231.05,230.88,12.76621597]
[1733976455125,2.1636,230.96,230.91,2.164]
[1733976455329,12.76621597,231.02,230.85,12.76621597]
[1733976455625,15.40621597,231.02,230.88,2.1643]
[1733976456034,12.76621597,230.99,230.88,2.1643]
[1733976456825,12.76621597,230.99,230.89,2.1642]
[1733976457525,2.64,231.02,230.88,12.76621597]
[1733976457721,4.0211,231.05,230.88,12.76621597]
[1733976458525,2.1633,230.99,230.93,2.1638]
[1733976458729,2.1633,230.99,230.94,2.64]
[1733976459223,2.1633,230.99,230.94,4.8037]
[1733976459822,12.76621597,231.03,230.94,2.64]
[1733976460029,12.76621597,231.03,230.89,2.64]
[1733976460430,2.1637,230.95,230.9,2.1641]
[1733976460627,12.76621597,231.0,230.89,2.64]
[1733976461735,2.1638,230.94,230.89,2.64]
[1733976463134,2.1639,230.93,230.89,2.64]
[1733976463337,12.76621597,231.0,230.89,2.64]
[1733976463734,2.64,230.99,230.89,2.64]
[1733976463943,2.64,230.99,230.87,2.1644]
[1733976463944,12.76621597,230.97,230.85,2.64]
[1733976464138,1.3182,230.96,230.85,2.64]
[1733976464436,12.76621597,230.94,230.85,2.64]
[1733976464635,2.1643,230.9,230.85,2.64]
[1733976464842,12.76621597,230.94,230.82,5.13405537]
[1733976465040,12.76621597,230.94,230.81,4.805]
[1733976465041,2.1642,230.91,230.81,4.805]
[1733976465334,12.76621597,230.94,230.81,4.805]
[1733976465538,2.1645,230.87,230.81,4.805]
[1733976465938,2.1645,230.87,230.81,10.03347007]
[1733976466341,2.1645,230.87,230.82,2.1649]
[1733976466742,2.1645,230.87,230.81,7.86847007]
[1733976467338,2.1643,230.89,230.81,7.86847007]
[1733976467840,2.164,230.93,230.88,2.1643]
[1733976468540,2.164,230.93,230.87,2.64]
[1733976468541,1.3182,230.96,230.87,2.64]
[1733976468947,1.3182,230.96,230.82,12.76621597]
[1733976469155,1.3182,230.96,230.81,5.22847007]
[1733976469156,1.3182,230.96,230.83,2.64]
[1733976469844,2.1644,230.88,230.83,4.8049]
[1733976470046,15.40621597,230.94,230.81,7.86847007]
[1733976472546,15.40621597,230.94,230.82,2.1649]
[1733976472547,2.1643,230.89,230.82,2.1649]
[1733976473048,2.1644,230.88,230.83,2.1649]
[1733976474146,2.1645,230.87,230.82,2.1649]
[1733976477959,12.76621597,230.87,230.75,2.8313]
[1733976478262,2.7523,230.93,230.75,5.4713]
[1733976478455,12.76621597,230.88,230.75,5.4713]
[1733976478660,2.1651,230.81,230.76,2.1655]
[1733976480155,12.76621597,230.88,230.76,2.1655]
[1733976480361,2.1652,230.8,230.76,2.1655]
[1733976480862,1.3626,230.87,230.75,5.4713]
[1733976481057,1.3626,230.87,230.74,4.8056]
[1733976481058,12.76621597,230.85,230.74,4.8056]
[1733976481765,12.76621597,230.85,230.74,2.64]
[1733976481965,2.1652,230.8,230.75,2.1656]
[1733976485466,2.7523,230.93,230.79,12.76621597]
[1733976485771,2.7523,230.93,230.8,2.64]
[1733976486065,1.3285,230.99,230.82,12.76621597]
[1733976486066,16.73471597,230.99,230.82,12.76621597]
[1733976486567,14.09471597,230.99,230.82,12.76621597]
[1733976486864,1.3285,230.99,230.88,12.76621597]
[1733976487062,1.3285,230.99,230.89,2.64]
[1733976487464,14.09471597,230.99,230.89,2.64]
[1733976487666,12.76621597,230.95,230.84,2.64]
[1733976487862,1.3285,230.99,230.83,2.64]
[1733976487863,12.76621597,230.92,230.83,2.64]
[1733976488061,12.76621597,230.92,230.81,2.64]
[1733976488865,2.1643,230.89,230.82,2.1649]
[1733976489065,12.76621597,230.95,230.81,2.64]
[1733976490566,2.1641,230.91,230.85,2.1646]
[1733976491964,12.76621597,230.95,230.83,2.1648]
[1733976492162,12.76621597,230.95,230.81,2.64]
[1733976492669,12.76621597,230.95,230.83,2.1648]
[1733976492670,2.1643,230.9,230.83,2.1648]
[1733976493967,12.76621597,230.95,230.83,2.1648]
[1733976494171,2.1644,230.88,230.82,2.64]
[1733976494571,1.3285,230.99,230.85,12.76621597]
[1733976494972,12.76621597,231.05,230.88,12.76621597]
[1733976495274,12.76621597,231.05,230.89,4.0907]
[1733976496076,12.76621597,231.02,230.89,4.0907]
[1733976496274,2.1634,230.99,230.91,2.1641]
[1733976496475,12.76621597,231.02,230.91,2.1641]
[1733976496874,2.1635,230.97,230.91,2.1641]
[1733976498275,2.1635,230.97,230.89,4.0907]
[1733976498474,2.1636,230.96,230.89,4.0907]
[1733976499579,2.1636,230.96,230.9,2.1641]
[1733976499976,12.76621597,231.02,230.89,4.0907]
[1733976500168,12.76621597,231.02,230.89,2.64]
[1733976500667,2.1639,230.94,230.89,2.64]
[1733976502669,12.76621597,231.02,230.89,2.64]
[1733976503770,2.1634,230.99,230.89,2.64]
[1733976503969,12.76621597,231.02,230.89,2.64]
[1733976504673,2.1639,230.94,230.89,2.64]
[1733976505277,2.1639,230.94,230.89,4.8043]
[1733976506278,12.76621597,231.02,230.89,4.8043]
[1733976506279,12.76621597,231.02,230.91,2.164]
[1733976506575,5.19691509,231.05,230.91,2.164]
[1733976506576,17.96313106,231.05,230.91,12.76621597]
[1733976507671,17.96313106,231.05,230.89,2.64]
[1733976508274,70.66250261,231.06,230.89,2.64]
[1733976508474,83.42871858,231.06,230.9,1.3457]
[1733976509085,83.42871858,231.06,230.91,12.76621597]
[1733976509279,70.66250261,231.06,230.91,12.76621597]
[1733976509576,70.66250261,231.06,230.97,2.1635]
[1733976509772,70.66250261,231.06,230.97,4.8035]
[1733976509978,70.66250261,231.06,230.97,2.64]
[1733976510373,2.1631,231.02,230.97,2.64]
[1733976511683,2.1631,231.02,230.97,4.8035]
[1733976513776,2.1632,231.01,230.97,4.8035]
[1733976514976,2.1633,231.0,230.97,2.64]
[1733976516980,2.1633,231.0,230.9,1.3457]
[1733976516981,1.434,231.06,230.9,2.1641]
[1733976517176,12.76621597,230.99,230.9,2.1641]
[1733976517381,12.76621597,230.99,230.88,2.64]
[1733976517590,2.1639,230.94,230.88,4.8043]
[1733976518488,2.1639,230.93,230.88,4.8043]
[1733976518988,2.7481,231.01,230.87,5.1532741]
[1733976519186,2.7481,231.01,230.89,2.64]
[1733976519386,12.76621597,230.99,230.89,2.64]
[1733976519580,2.1639,230.93,230.89,2.64]
[1733976521185,12.76621597,230.99,230.89,2.64]
[1733976521389,2.1638,230.95,230.89,4.8043]
[1733976521578,12.76621597,230.99,230.89,2.64]
[1733976521982,2.7481,231.01,230.89,2.64]
[1733976522288,1.434,231.06,230.91,12.76621597]
[1733976522485,2.1629,231.04,230.97,2.1635]
[1733976522883,1.434,231.06,230.96,2.64]
[1733976523183,2.1628,231.05,230.98,2.1634]
[1733976523780,71.95453166,231.1,230.97,12.76621597]
[1733976523982,71.95453166,231.1,231.02,2.163]
[1733976523983,2.1625,231.09,231.02,2.163]
[1733976524490,71.95453166,231.1,230.97,14.12051597]
[1733976524689,69.20683166,231.1,230.97,14.12051597]
[1733976524988,1.4171,231.13,231.0,12.76621597]
[1733976525785,1.4171,231.13,231.03,2.1629]
[1733976525984,1.4171,231.13,231.04,2.64]
[1733976526384,1.4171,231.13,231.07,2.1626]
[1733976526584,12.76621597,231.2,231.06,12.76621597]
[1733976526783,2.64,231.22,231.06,12.76621597]
[1733976526990,2.1616,231.18,231.06,12.76621597]
[1733976527388,12.76621597,231.2,231.05,1.3466]
[1733976528392,2.1618,231.16,231.05,1.3466]
[1733976528589,12.76621597,231.17,231.05,1.3466]
[1733976528788,12.76621597,231.17,231.06,2.64]
[1733976528994,12.76621597,231.14,231.06,2.64]
[1733976529185,2.1623,231.1,231.06,2.64]
[1733976529593,12.76621597,231.14,231.06,2.64]
[1733976530996,12.76621597,231.17,231.06,2.64]
[1733976532599,2.1621,231.13,231.06,4.8026]
[1733976532995,12.76621597,231.17,231.06,4.8026]
[1733976533197,12.76621597,231.17,231.06,2.1626]
[1733976534296,2.1621,231.13,231.07,2.1626]
[1733976535601,2.1621,231.13,231.05,2.64]
[1733976536695,2.1621,231.12,231.05,2.64]
[1733976537097,2.1621,231.12,231.04,2.1628]
[1733976537297,2.1621,231.12,231.04,4.7828]
[1733976537696,2.1621,231.12,231.05,2.1628]
[1733976538400,15.40621597,231.2,231.05,12.76621597]
[1733976538995,2.1618,231.16,231.1,2.1623]
[1733976539306,2.1618,231.16,231.05,12.76621597]
[1733976539497,2.1618,231.16,231.1,2.1623]
[1733976539703,2.1616,231.18,231.1,2.62]
[1733976540207,2.1617,231.17,231.11,2.1622]
[1733976540704,17.83854322,231.21,231.1,2.62]
[1733976540907,2.162,231.14,231.08,2.1625]
[1733976541108,12.76621597,231.18,231.07,2.62]
[1733976541597,2.1619,231.15,231.07,2.62]
[1733976541802,12.76621597,231.18,231.07,2.62]
[1733976542200,2.1619,231.15,231.07,2.62]
[1733976542505,12.76621597,231.18,231.07,2.62]
[1733976542698,2.1622,231.12,231.03,5.09571075]
[1733976542895,12.76621597,231.15,231.04,2.62]
[1733976543100,1.3932,231.14,230.99,12.76621597]
[1733976543302,1.3932,231.14,231.0,2.62]
[1733976543804,1.3932,231.14,231.01,7.85767248]
[1733976545600,2.1622,231.11,231.05,2.1627]
[1733976545804,1.3932,231.14,231.05,12.76621597]
[1733976546001,1.3707,231.2,231.08,12.76621597]
[1733976546200,1.3707,231.2,231.09,2.62]
[1733976546201,14.13691597,231.2,231.09,2.62]
[1733976546505,12.76621597,231.17,231.05,2.62]
[1733976546907,12.76621597,231.17,231.05,4.7827]
[1733976546908,2.1623,231.11,231.05,4.7827]
[1733976548404,2.1623,231.1,231.05,4.7827]
[1733976549201,15.38621597,231.17,231.02,2.62]
[1733976549202,12.76621597,231.14,231.02,2.62]
[1733976549404,2.8115,231.13,231.02,2.62]
[1733976549706,2.8115,231.13,231.01,2.62]
[1733976550302,2.1626,231.07,231.01,4.7832]
[1733976550906,2.1628,231.05,230.99,4.7833]
[1733976551206,2.1628,231.05,230.99,2.1633]
[1733976551397,2.163,231.03,230.97,2.62]
[1733976551598,12.76621597,231.07,230.97,2.62]
[1733976551810,1.3203,231.09,230.97,2.62]
[1733976552505,1.3203,231.09,231.01,2.1632]
[1733976552704,1.3203,231.09,230.97,2.62]
[1733976552909,2.8115,231.13,231.03,12.76621597]
[1733976553102,360.97503662,231.2,231.08,2.1625]
[1733976553103,2.162,231.14,231.08,2.1625]
[1733976553299,2.62,231.17,231.04,2.62]
[1733976553499,2.1621,231.13,231.05,2.1627]
[1733976553705,2.1621,231.13,231.04,2.62]
[1733976554209,2.1622,231.12,231.04,2.62]
[1733976554409,12.76621597,231.16,231.04,2.62]
[1733976555704,2.1621,231.13,231.04,2.62]
[1733976556407,2.162,231.14,231.07,2.1626]
[1733976558110,2.162,231.13,231.04,2.62]
[1733976558301,2.162,231.13,231.02,2.62]
[1733976558302,12.76621597,231.13,231.02,2.62]
[1733976558610,2.1626,231.08,231.02,2.62]
[1733976558813,2.1626,231.08,230.95,5.11951058]
[1733976558814,12.76621597,231.1,230.99,4.7833]
[1733976559109,1.3656,231.09,230.99,2.1633]
[1733976559409,1.3656,231.09,230.95,5.11951058]
[1733976559410,2.1628,231.05,230.98,2.62]
[1733976559910,2.8221,231.09,231.02,2.1631]
[1733976560110,2.8221,231.09,230.98,2.62]
[1733976560509,2.1627,231.07,231.01,2.1632]
[1733976560812,2.1627,231.07,230.98,2.62]
[1733976561702,2.1627,231.07,231.0,2.1633]
[1733976562505,180.48751831,231.14,230.98,2.62]
[1733976562707,24.69614338,231.13,230.98,2.62]
[1733976563408,2.1626,231.07,231.01,2.1631]
[1733976566007,2.1625,231.09,230.99,2.1633]
[1733976566215,26.93845158,231.12,230.99,2.1633]
[1733976566613,2.1628,231.05,230.99,2.1633]
[1733976568908,2.1628,231.05,230.98,2.62]
[1733976568909,2.1628,231.05,231.0,2.1633]
[1733976569312,15.38621597,231.12,230.98,2.62]
[1733976569509,14.08581597,231.15,230.98,2.62]
[1733976569710,1.3196,231.15,231.03,12.76621597]
[1733976569904,181.94341831,231.19,231.06,12.76621597]
[1733976570205,61.09186266,231.23,231.09,12.76621597]
[1733976570413,2.1614,231.21,231.09,12.76621597]
[1733976570812,2.1614,231.21,231.12,2.1621]
[1733976571008,2.1614,231.21,231.09,12.76621597]
[1733976571009,2.1614,231.21,231.13,2.62]
[1733976571809,12.76621597,231.21,231.08,2.62]
[1733976572713,2.1618,231.16,231.1,2.1623]
[1733976572908,2.1618,231.16,231.08,2.62]
[1733976573108,2.7572,231.23,231.08,15.38621597]
[1733976573407,2.7572,231.23,231.11,12.76621597]
[1733976574010,2.1615,231.19,231.12,2.1621]
[1733976574511,2.1613,231.22,231.16,2.1618]
[1733976574714,69.16738224,231.24,231.14,15.38621597]
[1733976575505,180.48751831,231.37,231.23,12.76621597]
[1733976575712,1.4279,231.41,231.26,12.76621597]
[1733976576007,1.4279,231.41,231.29,12.76621597]
[1733976576208,11.93661836,231.4,231.29,12.76621597]
[1733976576713,11.93661836,231.4,231.32,2.1602]
[1733976576714,2.1597,231.39,231.32,2.1602]
[1733976576909,2.1597,231.39,231.33,2.62]
[1733976578208,2.1599,231.36,231.28,2.1606]
[1733976578513,2.1599,231.36,231.29,2.62]
[1733976578708,17.9284535,231.42,231.29,2.62]
[1733976578912,2.16,231.35,231.29,2.62]
[1733976579516,2.1601,231.34,231.29,2.62]
[1733976579913,2.1601,231.34,231.27,2.1607]
[1733976580109,2.1601,231.34,231.28,2.62]
[1733976580417,1.3234,231.4,231.28,2.62]
[1733976581811,2.1601,231.34,231.28,2.62]
[1733976583514,12.76621597,231.36,231.2,12.76621597]
[1733976583715,12.76621597,231.36,231.21,2.62]
[1733976583916,1.4475,231.35,231.21,2.62]
[1733976584720,2.1605,231.3,231.23,2.1611]
[1733976585512,1.4475,231.35,231.22,2.62]
[1733976586215,2.1605,231.3,231.23,2.1611]
[1733976586422,1.4475,231.35,231.23,12.76621597]
[1733976586622,3.6075,231.35,231.27,2.1607]
[1733976586818,3.6075,231.35,231.28,2.62]
[1733976587722,2.1601,231.34,231.28,2.62]
[1733976588720,2.1602,231.33,231.28,2.62]
[1733976589618,12.76621597,231.36,231.2,16.93401597]
[1733976589814,12.76621597,231.36,231.21,2.62]
[1733976590618,12.76621597,231.33,231.21,2.62]
[1733976591024,1.4512,231.32,231.21,2.62]
[1733976591323,2.161,231.25,231.21,2.62]
[1733976591724,2.161,231.25,231.19,2.62]
[1733976592318,1.392,231.31,231.19,2.62]
[1733976593319,2.1605,231.3,231.19,2.62]
[1733976594620,2.1605,231.3,231.23,2.161]
[1733976595227,1.392,231.31,231.23,2.161]
[1733976595426,2.1606,231.29,231.23,2.161]
[1733976596028,1.392,231.31,231.19,2.62]
[1733976596222,1.392,231.31,231.21,2.1613]
[1733976596527,1.392,231.31,231.17,5.21861684]
[1733976596718,12.76621597,231.3,231.17,5.21861684]
[1733976596922,12.76621597,231.3,231.18,2.62]
[1733976597117,1.4511,231.29,231.18,2.62]
[1733976597617,2.1611,231.23,231.18,4.7816]
[1733976598626,2.1612,231.22,231.16,2.1617]
[1733976598925,2.1612,231.22,231.16,4.7817]
[1733976599127,2.1613,231.21,231.16,4.7817]
[1733976599324,2.1613,231.21,231.16,2.1617]
[1733976599522,12.76621597,231.27,231.14,2.62]
[1733976600423,2.1616,231.18,231.12,2.7921]
[1733976600626,2.1616,231.18,231.13,2.62]
[1733976600928,12.76621597,231.25,231.13,2.62]
[1733976601227,2.1615,231.19,231.14,2.162]
[1733976602620,12.76621597,231.19,231.09,4.7823]
[1733976602826,12.76621597,231.19,231.03,15.49611597]